fUST/lending_fUST_20251126
["ID","MTS","AMOUNT","RATE_DAILY","PERIOD"]
[394897394,1764094233112,-630.0,8.118e-05,2]
[394897395,1764094233121,-2152.0,8.118e-05,2]
[394897396,1764094233130,-414.0,8.118e-05,2]
[394897397,1764094233140,-500.0,8.16e-05,2]
[394897398,1764094233150,-1000.0,8.207e-05,2]
[394897399,1764094233160,-492.0,8.207e-05,2]
[394897400,1764094233170,-500.0,8.219e-05,2]
[394897401,1764094233179,-500.0,8.219e-05,2]
[394897402,1764094233189,-500.0,8.219e-05,2]
[394897403,1764094233198,-500.0,8.219e-05,2]
[394897404,1764094233208,-263.51735562,8.219e-05,2]
[394897405,1764094233217,-448.0,8.252e-05,2]
[394897406,1764094233227,-555.0,8.252e-05,2]
[394897407,1764094233236,-2003.19686355,8.273e-05,2]
[394897408,1764094233246,-500.0,8.297e-05,2]
[394897409,1764094233255,-448.0,8.389e-05,2]
[394897410,1764094233264,-555.0,8.389e-05,2]
[394897411,1764094233274,-541.07963324,8.434e-05,2]
[394897412,1764094233283,-448.0,8.526e-05,2]
[394897413,1764094233293,-555.0,8.526e-05,2]
[394897414,1764094233303,-3561.23886853,8.634e-05,2]
[394897415,1764094233312,-448.0,8.663e-05,2]
[394897416,1764094233321,-555.0,8.663e-05,2]
[394897417,1764094233330,-387.11418122,8.778e-05,2]
[394897418,1764094233340,-448.0,8.8e-05,2]
[394897419,1764094233350,-555.0,8.8e-05,2]
[394897420,1764094233361,-500.0,8.8e-05,2]
[394897421,1764094233370,-448.0,8.937e-05,2]
[394897422,1764094233379,-555.0,8.937e-05,2]
[394897423,1764094233389,-1000.0,9.028e-05,2]
[394897424,1764094233399,-791.0,9.028e-05,2]
[394897425,1764094233408,-1279.972188,9.041e-05,2]
[394897426,1764094233417,-448.0,9.074e-05,2]
[394897427,1764094233426,-555.0,9.074e-05,2]
[394897428,1764094233435,-448.0,9.211e-05,2]
[394897429,1764094233444,-555.0,9.211e-05,2]
[394897430,1764094233454,-448.0,9.348e-05,2]
[394897431,1764094233463,-555.0,9.348e-05,2]
[394897432,1764094233472,-9063.7633175,9.354e-05,2]
[394897433,1764094233482,-448.0,9.485e-05,2]
[394897434,1764094233491,-555.0,9.485e-05,2]
[394897435,1764094233500,-448.0,9.622e-05,2]
[394897436,1764094233509,-555.0,9.622e-05,2]
[394897437,1764094233519,-448.0,9.759e-05,2]
[394897438,1764094233528,-555.0,9.759e-05,2]
[394897439,1764094233538,-1429.9425825,9.88e-05,2]
[394897440,1764094233548,-448.0,9.896e-05,2]
[394897441,1764094233559,-555.0,9.896e-05,2]
[394897442,1764094233568,-1000.0,9.931e-05,2]
[394897443,1764094233578,-1000.0,9.931e-05,2]
[394897444,1764094233588,-158.904971,9.999e-05,3]
[394897445,1764094233598,-154.729244,9.999e-05,3]
[394897446,1764094233613,-1513.69962991,9.999e-05,2]
[394897447,1764094233622,-5000.0,0.0001,3]
[394897448,1764094233631,-151.0,0.0001,2]
[394897449,1764094233642,-151.0,0.0001,2]
[394897450,1764094233652,-151.0,0.0001,2]
[394897451,1764094233662,-189.902905,0.0001,2]
[394897452,1764094233671,-601.127447,0.0001,2]
[394897453,1764094233684,-601.127447,0.0001,2]
[394897454,1764094233694,-601.127447,0.0001,2]
[394897455,1764094233704,-601.127447,0.0001,2]
[394897456,1764094233714,-399.0,0.0001,2]
[394897457,1764094233724,-50000.0,0.0001,2]
[394897458,1764094233734,-168.3888056,0.0001,2]
[394897459,1764094233744,-470.72049211,0.00010033,2]
[394897460,1764094233753,-575.04246945,0.00010033,2]
[394897461,1764094233764,-17072.17594307,0.000101,2]
[394897462,1764094233774,-174.61919141,0.00010548,2]
[394897463,1764094233783,-10000.0,0.00010585,2]
[394897464,1764094233793,-151.0,0.00010685,2]
[394897465,1764094233805,-151.0,0.00010685,2]
[394897466,1764094233815,-284.923794,0.00010685,2]
[394897467,1764094233824,-284.923794,0.00010685,2]
[394897468,1764094233835,-284.923794,0.00010685,2]
[394897469,1764094233844,-284.923794,0.00010685,2]
[394897470,1764094233854,-151.0,0.00010685,2]
[394897471,1764094233863,-151.0,0.00010685,2]
[394897472,1764094233873,-151.0,0.00010685,2]
[394897473,1764094233883,-216.384311,0.00010685,2]
[394897474,1764094233892,-151.0,0.00010685,2]
[394897475,1764094233902,-151.0,0.00010685,2]
[394897476,1764094233911,-151.0,0.00010685,2]
[394897477,1764094233920,-151.0,0.00010685,2]
[394897478,1764094233929,-151.0,0.00010685,2]
[394897479,1764094233939,-151.0,0.00010685,2]
[394897480,1764094233949,-151.0,0.00010685,2]
[394897481,1764094233959,-151.0,0.00010685,2]
[394897482,1764094233969,-224.332245,0.00010685,2]
[394897483,1764094233978,-151.0,0.00010685,2]
[394897484,1764094233987,-151.0,0.00010685,2]
[394897485,1764094233997,-151.0,0.00010685,2]
[394897486,1764094234006,-151.0,0.00010685,2]
[394897487,1764094234015,-151.0,0.00010685,2]
[394897488,1764094234024,-151.0,0.00010685,2]
[394897489,1764094234033,-185.27836,0.00010685,2]
[394897490,1764094234042,-185.27836,0.00010685,2]
[394897491,1764094234051,-185.27836,0.00010685,2]
[394897492,1764094234060,-185.27836,0.00010685,2]
[394897493,1764094234070,-151.0,0.00010685,2]
[394897494,1764094234079,-151.0,0.00010685,2]
[394897495,1764094234088,-193.293497,0.00010685,2]
[394897496,1764094234098,-193.293497,0.00010685,2]
[394897497,1764094234107,-151.0,0.00010685,2]
[394897498,1764094234116,-225.502145,0.00010685,2]
[394897499,1764094234125,-193.293497,0.00010685,2]
[394897500,1764094234134,-151.0,0.00010685,2]
[394897501,1764094234143,-193.293497,0.00010685,2]
[394897502,1764094234153,-151.0,0.00010685,2]
[394897503,1764094234162,-151.0,0.00010685,2]
[394897504,1764094234171,-151.0,0.00010685,2]
[394897505,1764094234180,-204.194469,0.00010685,2]
[394897506,1764094234190,-151.0,0.00010685,2]
[394897507,1764094234199,-204.194469,0.00010685,2]
[394897508,1764094234209,-220.415932,0.00010685,2]
[394897509,1764094234218,-204.194469,0.00010685,2]
[394897510,1764094234227,-204.194469,0.00010685,2]
[394897511,1764094234236,-151.0,0.00010685,2]
[394897512,1764094234245,-151.0,0.00010685,2]
[394897513,1764094234255,-151.0,0.00010685,2]
[394897514,1764094234264,-154.016116,0.00010685,2]
[394897515,1764094234273,-151.0,0.00010685,2]
[394897516,1764094234283,-151.0,0.00010685,2]
[394897517,1764094234292,-151.0,0.00010685,2]
[394897518,1764094234303,-151.0,0.00010685,2]
[394897519,1764094234312,-151.0,0.00010685,2]
[394897520,1764094234321,-152.327126,0.00010685,2]
[394897521,1764094234330,-151.0,0.00010685,2]
[394897522,1764094234339,-151.0,0.00010685,2]
[394897523,1764094234349,-151.0,0.00010685,2]
[394897524,1764094234358,-258.108502,0.00010685,2]
[394897525,1764094234368,-213.238217,0.00010685,2]
[394897526,1764094234377,-213.238217,0.00010685,2]
[394897527,1764094234387,-213.238217,0.00010685,2]
[394897528,1764094234396,-213.238217,0.00010685,2]
[394897529,1764094234406,-194.275245,0.00010685,2]
[394897530,1764094234414,-194.275245,0.00010685,2]
[394897531,1764094234423,-194.275245,0.00010685,2]
[394897532,1764094234433,-194.275245,0.00010685,2]
[394897533,1764094234442,-270.743046,0.00010685,2]
[394897534,1764094234452,-151.0,0.00010685,2]
[394897535,1764094234462,-270.743046,0.00010685,2]
[394897536,1764094234472,-151.0,0.00010685,2]
[394897537,1764094234482,-270.743046,0.00010685,2]
[394897538,1764094234491,-107.37487662,0.00010685,2]
[394897539,1764094234517,-163.36816938,0.00010685,2]
[394897540,1764094234527,-151.0,0.00010685,2]
[394897541,1764094234536,-177.960418,0.00010685,2]
[394897542,1764094234545,-450.381324,0.00010685,2]
[394897543,1764094234554,-250.454552,0.00010685,2]
[394897544,1764094234564,-450.381324,0.00010685,2]
[394897545,1764094234573,-250.454552,0.00010685,2]
[394897546,1764094234582,-450.381324,0.00010685,2]
[394897547,1764094234592,-250.454552,0.00010685,2]
[394897548,1764094234602,-450.381324,0.00010685,2]
[394897549,1764094234616,-250.454552,0.00010685,2]
[394897550,1764094234625,-151.0,0.00010685,2]
[394897551,1764094234634,-151.0,0.00010685,2]
[394897552,1764094234643,-151.0,0.00010685,2]
[394897553,1764094234654,-550.22,0.00010685,2]
[394897554,1764094234663,-550.22,0.00010685,2]
[394897555,1764094234673,-130.15664781,0.00010685,2]
[394897559,1764094237598,-703.52979223,6.813e-05,2]
[394897560,1764094237930,-270.83597288,6.813e-05,2]
[394897561,1764094237939,-51.62678164,0.00010685,2]
[394897562,1764094237951,-302.83132055,0.00010685,2]
[394897563,1764094237960,-533.72393587,0.00010685,2]
[394897564,1764094237971,-16.49606413,0.00010685,2]
[394897565,1764094237981,-458.15393587,0.00010685,2]
[394897566,1764094237992,-26.46081413,0.00010685,2]
[394897567,1764094238001,-550.22,0.00010685,2]
[394897568,1764094238010,-484.61475,0.00010685,2]
[394897569,1764094238019,-151.0,0.00010685,2]
[394897570,1764094238029,-484.61475,0.00010685,2]
[394897571,1764094238038,-151.0,0.00010685,2]
[394897572,1764094238047,-157.90388,0.00010685,2]
[394897573,1764094238056,-157.90388,0.00010685,2]
[394897574,1764094238067,-157.90388,0.00010685,2]
[394897575,1764094238076,-151.0,0.00010685,2]
[394897576,1764094238085,-157.90388,0.00010685,2]
[394897577,1764094238094,-151.0,0.00010685,2]
[394897578,1764094238104,-151.0,0.00010685,2]
[394897579,1764094238113,-151.0,0.00010685,2]
[394897580,1764094238123,-151.0,0.00010685,2]
[394897581,1764094238133,-168.338022,0.00010685,2]
[394897582,1764094238143,-1426.747295,0.00010685,2]
[394897583,1764094238152,-1426.747295,0.00010685,2]
[394897584,1764094238162,-1426.747295,0.00010685,2]
[394897585,1764094238171,-1426.747295,0.00010685,2]
[394897586,1764094238180,-305.132078,0.00010685,2]
[394897587,1764094238190,-305.132078,0.00010685,2]
[394897588,1764094238199,-305.132078,0.00010685,2]
[394897589,1764094238209,-305.132078,0.00010685,2]
[394897590,1764094238219,-279.128782,0.00010685,2]
[394897591,1764094238229,-279.128782,0.00010685,2]
[394897592,1764094238238,-279.128782,0.00010685,2]
[394897593,1764094238248,-279.128782,0.00010685,2]
[394897594,1764094238258,-431.287818,0.00010685,2]
[394897595,1764094238267,-57.73926394,0.00010685,2]
[394897643,1764094244684,-257.272,0.00010685,2]
[394897719,1764095431842,-264.49007147,4.853e-05,2]
[394897721,1764095431852,-300.0,4.895e-05,2]
[394897723,1764095431861,-300.0,4.895e-05,2]
[394897725,1764095431871,-300.0,4.895e-05,2]
[394897727,1764095431880,-300.0,4.895e-05,2]
[394897733,1764095432048,-300.0,4.895e-05,2]
[394897734,1764095432059,-300.0,4.895e-05,2]
[394897735,1764095432069,-300.0,4.895e-05,2]
[394897736,1764095432079,-300.0,4.895e-05,2]
[394897737,1764095432089,-300.0,4.895e-05,2]
[394897738,1764095432099,-300.0,4.895e-05,2]
[394897739,1764095432108,-300.0,4.895e-05,2]
[394897740,1764095432117,-300.0,4.895e-05,2]
[394897741,1764095432127,-300.0,4.895e-05,2]
[394897742,1764095432136,-300.0,4.895e-05,2]
[394897743,1764095432145,-300.0,4.895e-05,2]
[394897744,1764095432155,-371.93964022,4.992e-05,2]
[394897770,1764095438016,-228.06035978,4.992e-05,2]
[394897771,1764095438027,-720.0,5.491e-05,2]
[394897772,1764095438037,-2150.337,5.687e-05,2]
[394897773,1764095438046,-630.0,5.687e-05,2]
[394897774,1764095438056,-414.0,5.687e-05,2]
[394897775,1764095438065,-864.0,6.04e-05,2]
[394897776,1764095438075,-1000.0,6.644e-05,2]
[394897777,1764095438085,-160.0,6.846e-05,2]
[394897778,1764095438094,-312.09828433,6.853e-05,2]
[394897779,1764095438103,-1000.0,7.309e-05,2]
[394897780,1764095438113,-244.0,7.309e-05,2]
[394897781,1764095438122,-353.43546982,7.644e-05,2]
[394897782,1764095438132,-1211.29268455,7.881e-05,2]
[394897783,1764095438141,-1000.0,8.039e-05,2]
[394897784,1764095438151,-492.0,8.039e-05,2]
[394897785,1764095438160,-848.394,8.207e-05,2]
[394897786,1764095438170,-414.0,8.687e-05,2]
[394897787,1764095438180,-256.75655889,8.727e-05,2]
[394897788,1764095438189,-771.46767946,8.843e-05,2]
[394897795,1764095445028,-228.53232054,8.843e-05,2]
[394897796,1764095445038,-791.0,8.843e-05,2]
[394897797,1764095445048,-146.82767946,8.853e-05,2]
[394897837,1764096638079,-202.53256492,4.99e-05,2]
[394897838,1764096638089,-202.53256492,5.04e-05,2]
[394897839,1764096638098,-250.02175076,5.066e-05,2]
[394897840,1764096638107,-300.0,5.799e-05,2]
[394897841,1764096638116,-300.0,5.799e-05,2]
[394897842,1764096638291,-300.0,5.799e-05,2]
[394897843,1764096638305,-300.0,5.799e-05,2]
[394897844,1764096638316,-300.0,5.799e-05,2]
[394897845,1764096638327,-300.0,5.799e-05,2]
[394897846,1764096638341,-300.0,5.799e-05,2]
[394897847,1764096638352,-300.0,5.799e-05,2]
[394897848,1764096638364,-300.0,5.799e-05,2]
[394897849,1764096638375,-300.0,5.799e-05,2]
[394897850,1764096638389,-300.0,5.799e-05,2]
[394897851,1764096638401,-300.0,5.799e-05,2]
[394897852,1764096638414,-300.0,5.799e-05,2]
[394897853,1764096638426,-300.0,5.799e-05,2]
[394897854,1764096638438,-300.0,5.799e-05,2]
[394897855,1764096638448,-600.0,5.914e-05,2]
[394897856,1764096638459,-500.0,6.089e-05,2]
[394897857,1764096638471,-500.0,6.089e-05,2]
[394897858,1764096638481,-500.0,6.089e-05,2]
[394897859,1764096638493,-517.59381912,6.089e-05,2]
[394897860,1764096638504,-989.0,6.092e-05,2]
[394897861,1764096638515,-630.0,6.092e-05,2]
[394897862,1764096638525,-2152.0,6.092e-05,2]
[394897863,1764096638536,-414.0,6.092e-05,2]
[394897864,1764096638547,-720.0,6.505e-05,2]
[394897865,1764096638557,-353.43546982,6.837e-05,2]
[394897866,1764096638567,-160.0,6.837e-05,2]
[394897867,1764096638576,-295.0256659,7.066e-05,2]
[394897868,1764096638587,-864.0,7.156e-05,2]
[394897869,1764096638596,-1090.29664496,7.66e-05,2]
[394897870,1764096638606,-1000.0,7.871e-05,2]
[394897871,1764096638616,-1000.0,8.659e-05,2]
[394897872,1764096638626,-244.0,8.659e-05,2]
[394897873,1764096638642,-165.57584969,8.853e-05,2]
[394897874,1764096638652,-207.8908245,8.853e-05,2]
[394897875,1764096638662,-345.94903301,8.853e-05,2]
[394897876,1764096638673,-792.7886032,8.962e-05,2]
[394897877,1764096638683,-340.02958103,9.066e-05,2]
[394897878,1764096638692,-414.0,9.092e-05,2]
[394897879,1764096638702,-255.52022312,9.289e-05,2]
[394897880,1764096638712,-2511.30185623,9.347e-05,3]
[394897881,1764096638723,-1000.0,9.524e-05,2]
[394897882,1764096638734,-492.0,9.524e-05,2]
[394897883,1764096638744,-176.39025782,9.858e-05,2]
[394897884,1764096638753,-168.3888056,0.0001,2]
[394897885,1764096638763,-317.0,0.00010348,2]
[394897886,1764096638773,-1090.29664496,0.00010403,2]
[394897887,1764096638782,-792.5972028,0.00010466,2]
[394897888,1764096638791,-1000.0,0.00010477,2]
[394897889,1764096638800,-791.0,0.00010477,2]
[394897890,1764096638810,-678.716,0.00010477,2]
[394897891,1764096638819,-185.91032572,0.00010478,2]
[394897892,1764096638828,-500.0,0.00010547,2]
[394897893,1764096638839,-500.0,0.00010547,2]
[394897894,1764096638848,-300.0,0.00010547,2]
[394897895,1764096638858,-500.0,0.00010547,2]
[394897896,1764096638867,-500.0,0.00010547,2]
[394897897,1764096638876,-584.46214894,0.00010547,2]
[394897898,1764096638889,-500.0,0.00010547,2]
[394897899,1764096638897,-174.61919141,0.00010548,2]
[394897900,1764096638906,-185.91032571,0.00010669,2]
[394897901,1764096638916,-6322.41997802,0.00010711,2]
[394897915,1764096645065,-1090.29664496,0.00010299,2]
[394897916,1764096645074,-702.93938394,0.00010711,2]
[394897917,1764096645085,-2000.0,0.0001077,2]
[394897918,1764096645094,-151.0,0.00010811,2]
[394897919,1764096645103,-151.0,0.00010811,2]
[394897920,1764096645112,-151.0,0.00010811,2]
[394897921,1764096645121,-151.0,0.00010811,2]
[394897923,1764096645129,-151.0,0.00010811,2]
[394897924,1764096645137,-151.0,0.00010811,2]
[394897926,1764096645145,-151.0,0.00010811,2]
[394897928,1764096645154,-151.0,0.00010811,2]
[394897930,1764096645163,-179.42113662,0.00010811,2]
[394897932,1764096645172,-151.0,0.00010811,2]
[394897934,1764096645181,-151.0,0.00010811,2]
[394897936,1764096645190,-263.193478,0.00010811,2]
[394897937,1764096645198,-151.0,0.00010811,2]
[394897938,1764096645207,-151.0,0.00010811,2]
[394897939,1764096645216,-151.0,0.00010811,2]
[394897940,1764096645224,-156.006748,0.00010811,2]
[394897941,1764096645233,-151.0,0.00010811,2]
[394897942,1764096645404,-158.129302,0.00010811,2]
[394897943,1764096645414,-151.0,0.00010811,2]
[394897944,1764096645425,-151.0,0.00010811,2]
[394897945,1764096645434,-151.0,0.00010811,2]
[394897946,1764096645443,-226.762335,0.00010811,2]
[394897947,1764096645452,-151.0,0.00010811,2]
[394897948,1764096645461,-151.0,0.00010811,2]
[394897949,1764096645471,-151.0,0.00010811,2]
[394897950,1764096645479,-151.0,0.00010811,2]
[394897951,1764096645489,-151.0,0.00010811,2]
[394897952,1764096645498,-151.0,0.00010811,2]
[394897953,1764096645507,-151.0,0.00010811,2]
[394897954,1764096645516,-151.0,0.00010811,2]
[394897955,1764096645536,-151.0,0.00010811,2]
[394897956,1764096645547,-151.0,0.00010811,2]
[394897957,1764096645556,-151.0,0.00010811,2]
[394897958,1764096645564,-152.625312,0.00010811,2]
[394897959,1764096645573,-151.0,0.00010811,2]
[394897960,1764096645582,-151.0,0.00010811,2]
[394897961,1764096645591,-151.0,0.00010811,2]
[394897962,1764096645600,-151.0,0.00010811,2]
[394897964,1764096645609,-151.0,0.00010811,2]
[394897965,1764096645618,-151.0,0.00010811,2]
[394897967,1764096645627,-151.0,0.00010811,2]
[394897969,1764096645637,-151.509772,0.00010811,2]
[394897970,1764096645652,-151.0,0.00010811,2]
[394897971,1764096645661,-151.0,0.00010811,2]
[394897972,1764096645670,-158.643051,0.00010811,2]
[394897973,1764096645678,-151.570394,0.00010811,2]
[394897974,1764096645691,-166.328051,0.00010811,2]
[394897975,1764096645701,-151.0,0.00010811,2]
[394897976,1764096645709,-151.0,0.00010811,2]
[394897977,1764096645718,-151.0,0.00010811,2]
[394897978,1764096645732,-151.0,0.00010811,2]
[394897979,1764096645741,-151.0,0.00010811,2]
[394897980,1764096645751,-151.0,0.00010811,2]
[394897981,1764096645760,-185.666652,0.00010811,2]
[394897982,1764096645768,-227.939035,0.00010811,2]
[394897983,1764096645777,-227.939035,0.00010811,2]
[394897984,1764096645787,-227.939035,0.00010811,2]
[394897985,1764096645796,-227.939035,0.00010811,2]
[394897986,1764096645806,-227.939035,0.00010811,2]
[394897987,1764096645816,-227.939035,0.00010811,2]
[394897988,1764096645825,-227.939035,0.00010811,2]
[394897989,1764096645835,-227.939035,0.00010811,2]
[394897990,1764096645844,-227.939035,0.00010811,2]
[394897991,1764096645853,-128.2593781,0.00010811,2]
[394897992,1764096645868,-99.6796569,0.00010811,2]
[394897993,1764096645878,-227.939035,0.00010811,2]
[394897994,1764096645887,-68.5863081,0.00010811,2]
[394897995,1764096645899,-159.3527269,0.00010811,2]
[394897996,1764096645908,-227.939035,0.00010811,2]
[394897997,1764096645918,-60.2482381,0.00010811,2]
[394898001,1764096646326,-500.0,0.00010547,2]
[394898002,1764096646337,-167.6907969,0.00010811,2]
[394898003,1764096646349,-227.939035,0.00010811,2]
[394898004,1764096646359,-227.939035,0.00010811,2]
[394898005,1764096646369,-227.939035,0.00010811,2]
[394898006,1764096646379,-227.939035,0.00010811,2]
[394898007,1764096646390,-227.939035,0.00010811,2]
[394898008,1764096646400,-227.939035,0.00010811,2]
[394898009,1764096646410,-151.0,0.00010811,2]
[394898010,1764096646422,-151.0,0.00010811,2]
[394898011,1764096646431,-151.0,0.00010811,2]
[394898012,1764096646450,-151.0,0.00010811,2]
[394898013,1764096646462,-151.0,0.00010811,2]
[394898014,1764096646472,-151.0,0.00010811,2]
[394898015,1764096646482,-151.0,0.00010811,2]
[394898016,1764096646492,-151.0,0.00010811,2]
[394898017,1764096646502,-151.0,0.00010811,2]
[394898018,1764096646512,-151.0,0.00010811,2]
[394898019,1764096646522,-151.0,0.00010811,2]
[394898020,1764096646532,-151.0,0.00010811,2]
[394898021,1764096646542,-151.0,0.00010811,2]
[394898022,1764096646552,-151.0,0.00010811,2]
[394898023,1764096646562,-151.0,0.00010811,2]
[394898024,1764096646572,-151.0,0.00010811,2]
[394898025,1764096646582,-151.0,0.00010811,2]
[394898026,1764096646591,-151.0,0.00010811,2]
[394898027,1764096646601,-151.0,0.00010811,2]
[394898028,1764096646611,-151.0,0.00010811,2]
[394898029,1764096646620,-151.0,0.00010811,2]
[394898030,1764096646630,-189.016035,0.00010811,2]
[394898031,1764096646639,-151.0,0.00010811,2]
[394898032,1764096646666,-151.0,0.00010811,2]
[394898033,1764096646676,-151.0,0.00010811,2]
[394898034,1764096646686,-151.0,0.00010811,2]
[394898035,1764096646696,-151.0,0.00010811,2]
[394898036,1764096646705,-151.0,0.00010811,2]
[394898037,1764096646715,-151.0,0.00010811,2]
[394898038,1764096646725,-151.0,0.00010811,2]
[394898039,1764096646735,-151.0,0.00010811,2]
[394898040,1764096646744,-270.752646,0.00010811,2]
[394898041,1764096646755,-151.0,0.00010811,2]
[394898042,1764096646764,-151.0,0.00010811,2]
[394898043,1764096646773,-151.0,0.00010811,2]
[394898044,1764096646783,-151.0,0.00010811,2]
[394898045,1764096646793,-275.084351,0.00010811,2]
[394898046,1764096646803,-151.0,0.00010811,2]
[394898047,1764096646813,-174.521984,0.00010811,2]
[394898048,1764096646822,-151.0,0.00010811,2]
[394898049,1764096646832,-151.0,0.00010811,2]
[394898050,1764096646842,-151.0,0.00010811,2]
[394898051,1764096646851,-151.0,0.00010811,2]
[394898052,1764096646860,-151.0,0.00010811,2]
[394898053,1764096646870,-151.0,0.00010811,2]
[394898054,1764096646880,-234.024627,0.00010811,2]
[394898055,1764096646891,-151.0,0.00010811,2]
[394898056,1764096646901,-151.0,0.00010811,2]
[394898057,1764096646910,-151.0,0.00010811,2]
[394898058,1764096646920,-151.0,0.00010811,2]
[394898059,1764096646929,-151.0,0.00010811,2]
[394898060,1764096646940,-154.734543,0.00010811,2]
[394898061,1764096646949,-151.0,0.00010811,2]
[394898062,1764096646959,-151.0,0.00010811,2]
[394898063,1764096646968,-298.015715,0.00010811,2]
[394898064,1764096646978,-151.0,0.00010811,2]
[394898065,1764096646987,-151.0,0.00010811,2]
[394898066,1764096646998,-151.0,0.00010811,2]
[394898067,1764096647007,-151.0,0.00010811,2]
[394898068,1764096647017,-151.0,0.00010811,2]
[394898069,1764096647027,-151.0,0.00010811,2]
[394898070,1764096647036,-91.96529858,0.00010811,2]
[394898071,1764096647052,-59.03470142,0.00010811,2]
[394898072,1764096647061,-151.0,0.00010811,2]
[394898073,1764096647071,-250.977526,0.00010811,2]
[394898074,1764096647080,-151.0,0.00010811,2]
[394898075,1764096647089,-151.0,0.00010811,2]
[394898076,1764096647099,-151.0,0.00010811,2]
[394898077,1764096647109,-151.0,0.00010811,2]
[394898078,1764096647118,-151.0,0.00010811,2]
[394898079,1764096647129,-151.0,0.00010811,2]
[394898080,1764096647138,-151.0,0.00010811,2]
[394898081,1764096647152,-151.0,0.00010811,2]
[394898082,1764096647167,-151.0,0.00010811,2]
[394898083,1764096647176,-151.0,0.00010811,2]
[394898084,1764096647187,-151.0,0.00010811,2]
[394898085,1764096647197,-151.0,0.00010811,2]
[394898086,1764096647207,-124.98777258,0.00010811,2]
[394898087,1764096647265,-26.01222742,0.00010811,2]
[394898088,1764096647275,-151.0,0.00010811,2]
[394898089,1764096647284,-151.0,0.00010811,2]
[394898090,1764096647294,-151.0,0.00010811,2]
[394898091,1764096647304,-101.98777256,0.00010811,2]
[394898092,1764096647406,-500.0,0.00010547,2]
[394898093,1764096647417,-500.0,0.00010547,2]
[394898094,1764096647428,-500.0,0.00010547,2]
[394898095,1764096647438,-49.01222744,0.00010811,2]
[394898096,1764096647447,-151.0,0.00010811,2]
[394898097,1764096647456,-246.45377,0.00010811,2]
[394898098,1764096647466,-151.0,0.00010811,2]
[394898099,1764096647476,-151.0,0.00010811,2]
[394898100,1764096647485,-151.0,0.00010811,2]
[394898101,1764096647494,-151.0,0.00010811,2]
[394898102,1764096647504,-151.0,0.00010811,2]
[394898103,1764096647514,-176.690733,0.00010811,2]
[394898104,1764096647524,-151.0,0.00010811,2]
[394898105,1764096647534,-151.0,0.00010811,2]
[394898106,1764096647543,-151.0,0.00010811,2]
[394898107,1764096647553,-151.0,0.00010811,2]
[394898108,1764096647562,-151.0,0.00010811,2]
[394898109,1764096647571,-151.0,0.00010811,2]
[394898110,1764096647581,-154.634797,0.00010811,2]
[394898111,1764096647590,-151.0,0.00010811,2]
[394898112,1764096647600,-154.634797,0.00010811,2]
[394898113,1764096647610,-151.0,0.00010811,2]
[394898114,1764096647620,-151.0,0.00010811,2]
[394898115,1764096647629,-154.634797,0.00010811,2]
[394898116,1764096647639,-151.0,0.00010811,2]
[394898117,1764096647650,-154.634797,0.00010811,2]
[394898118,1764096647659,-151.0,0.00010811,2]
[394898119,1764096647668,-154.634797,0.00010811,2]
[394898120,1764096647678,-151.0,0.00010811,2]
[394898121,1764096647687,-154.634797,0.00010811,2]
[394898122,1764096647697,-154.634797,0.00010811,2]
[394898123,1764096647707,-154.634797,0.00010811,2]